fUSD/lending_fUSD_20241030
["ID","MTS","AMOUNT","RATE_DAILY","PERIOD"]
[341048242,1730302261600,-1722.33,0.00035068,5]
[341048243,1730302261609,-500.0,0.00035068,5]
[341048244,1730302261619,-765.48,0.00035068,5]
[341048245,1730302261631,-520.05,0.00035068,5]
[341048246,1730302261641,-675.19,0.00035068,5]
[341048247,1730302261651,-746.68,0.00035068,5]
[341048248,1730302261661,-500.0,0.00035068,5]
[341048249,1730302261671,-500.0,0.00035068,5]
[341048250,1730302261681,-784.67,0.00035068,5]
[341048251,1730302261692,-500.0,0.00035068,5]
[341048252,1730302261702,-1069.78,0.00035068,5]
[341048253,1730302261712,-736.62,0.00035068,5]
[341048254,1730302261723,-500.0,0.00035068,5]
[341048255,1730302261733,-854.42,0.00035068,5]
[341048256,1730302261743,-606.31,0.00035068,5]
[341048257,1730302261753,-500.0,0.00035068,5]
[341048258,1730302261763,-500.0,0.00035068,5]
[341048259,1730302261772,-182.88536801,0.00035068,5]
[341048260,1730302261782,-500.0,0.00035068,5]
[341048261,1730302261792,-500.0,0.00035068,5]
[341048262,1730302261801,-500.0,0.00035068,5]
[341048263,1730302261812,-500.0,0.00035068,5]
[341048264,1730302261821,-500.0,0.00035068,5]
[341048265,1730302261831,-500.0,0.00035068,5]
[341048266,1730302261840,-500.0,0.00035068,5]
[341048267,1730302261849,-674.49,0.00035068,5]
[341048268,1730302261859,-982.93,0.00035068,5]
[341048269,1730302261869,-778.7,0.00035068,5]
[341048270,1730302261878,-500.0,0.00035068,5]
[341048271,1730302261888,-728.13,0.00035068,5]
[341048272,1730302261898,-500.0,0.00035068,5]
[341048273,1730302261908,-1522.75,0.00035068,5]
[341048274,1730302261917,-500.0,0.00035068,5]
[341048275,1730302261927,-552.1,0.00035068,5]
[341048276,1730302261937,-500.0,0.00035068,5]
[341048277,1730302261949,-500.0,0.00035068,5]
[341048278,1730302261959,-662.62,0.00035068,5]
[341048279,1730302261968,-1018.42,0.00035068,5]
[341048280,1730302261977,-500.0,0.00035068,5]
[341048281,1730302261987,-150.8794752,0.00035068,5]
[341048282,1730302261996,-500.0,0.00035068,5]
[341048283,1730302262006,-1327.53,0.00035068,5]
[341048284,1730302262015,-500.0,0.00035068,5]
[341048285,1730302262024,-500.0,0.00035068,5]
[341048286,1730302262034,-560.36,0.00035068,5]
[341048287,1730302262043,-607.17,0.00035068,5]
[341048288,1730302262053,-500.0,0.00035068,5]
[341048289,1730302262063,-500.0,0.00035068,5]
[341048290,1730302262073,-508.13,0.00035068,5]
[341048291,1730302262083,-1605.64,0.00035068,2]
[341048292,1730302262093,-500.0,0.00035068,5]
[341048293,1730302262102,-863.12,0.00035068,5]
[341048294,1730302262112,-1678.61,0.00035068,5]
[341048295,1730302262122,-656.55,0.00035068,5]
[341048296,1730302262131,-1610.11,0.00035068,5]
[341048297,1730302262141,-893.64,0.00035068,5]
[341048298,1730302262151,-500.0,0.00035068,5]
[341048299,1730302262160,-742.19,0.00035068,5]
[341048300,1730302262170,-785.2,0.00035068,5]
[341048301,1730302262180,-638.8,0.00035068,5]
[341048302,1730302262190,-536.5,0.00035068,5]
[341048303,1730302262200,-948.73,0.00035068,5]
[341048304,1730302262209,-500.0,0.00035068,5]
[341048305,1730302262219,-596.98,0.00035068,5]
[341048306,1730302262227,-1435.74,0.00035068,5]
[341048307,1730302262237,-500.0,0.00035068,5]
[341048308,1730302262246,-500.0,0.00035068,5]
[341048309,1730302262256,-1131.97,0.00035068,5]
[341048310,1730302262265,-500.0,0.00035068,5]
[341048311,1730302262274,-500.0,0.00035068,5]
[341048312,1730302262283,-500.0,0.00035068,5]
[341048313,1730302262293,-2913.63,0.00035068,5]
[341048314,1730302262303,-500.0,0.00035068,5]
[341048315,1730302262313,-500.0,0.00035068,5]
[341048316,1730302262322,-1246.85,0.00035068,5]
[341048317,1730302262332,-500.0,0.00035068,5]
[341048318,1730302262341,-682.68,0.00035068,5]
[341048319,1730302262350,-909.5,0.00035068,5]
[341048320,1730302262360,-1653.57,0.00035068,5]
[341048321,1730302262369,-512.41,0.00035068,5]
[341048322,1730302262379,-500.0,0.00035068,5]
[341048323,1730302262388,-568.82,0.00035068,5]
[341048324,1730302262398,-500.0,0.00035068,5]
[341048325,1730302262408,-607.5,0.00035068,5]
[341048326,1730302262419,-500.0,0.00035068,5]
[341048327,1730302262428,-685.64,0.00035068,5]
[341048328,1730302262438,-500.0,0.00035068,5]
[341048329,1730302262448,-529.75,0.00035068,5]
[341048330,1730302262457,-548.22,0.00035068,5]
[341048331,1730302262467,-728.2,0.00035068,5]
[341048332,1730302262477,-500.0,0.00035068,5]
[341048333,1730302262487,-500.0,0.00035068,5]
[341048334,1730302262496,-1132.3,0.00035068,5]
[341048335,1730302262506,-500.0,0.00035068,5]
[341048336,1730302262517,-597.03,0.00035068,5]
[341048337,1730302262528,-500.0,0.00035068,5]
[341048338,1730302262541,-500.0,0.00035068,5]
[341048339,1730302262554,-1047.4,0.00035068,5]
[341048340,1730302262565,-770.64,0.00035068,5]
[341048341,1730302262575,-500.0,0.00035068,5]
[341048342,1730302262586,-500.0,0.00035068,5]
[341048343,1730302262599,-535.78,0.00035068,5]
[341048344,1730302262608,-500.0,0.00035068,5]
[341048345,1730302262618,-507.29,0.00035068,5]
[341048346,1730302262628,-536.48,0.00035068,5]
[341048347,1730302262638,-879.42,0.00035068,5]
[341048348,1730302262652,-1152.94,0.00035068,5]
[341048349,1730302262662,-500.0,0.00035068,5]
[341048350,1730302262671,-538.17,0.00035068,5]
[341048351,1730302262681,-1061.7,0.00035068,5]
[341048352,1730302262694,-500.0,0.00035068,5]
[341048353,1730302262704,-745.29,0.00035068,5]
[341048354,1730302262715,-1669.21,0.00035068,5]
[341048355,1730302262727,-3103.25,0.00035068,5]
[341048356,1730302262736,-500.0,0.00035068,5]
[341048357,1730302262746,-500.0,0.00035068,5]
[341048358,1730302262756,-228.48,0.00035184,2]
[341048359,1730302262766,-200.0,0.00035311,2]
[341048360,1730302262776,-500.0,0.00035342,5]
[341048361,1730302262785,-500.0,0.00035342,5]
[341048362,1730302262794,-500.0,0.00035342,5]
[341048363,1730302262804,-500.0,0.00035342,5]
[341048364,1730302262814,-448.47860738,0.00035342,5]
[341048365,1730302262823,-500.0,0.00035342,5]
[341048366,1730302262833,-458.5218569,0.00035342,5]
[341048367,1730302262845,-500.0,0.00035342,5]
[341048368,1730302262854,-500.0,0.00035342,5]
[341048369,1730302262864,-500.0,0.00035342,5]
[341048370,1730302262873,-500.0,0.00035342,5]
[341048371,1730302262883,-500.0,0.00035342,5]
[341048372,1730302262893,-650.94,0.00035342,5]
[341048373,1730302262902,-500.0,0.00035342,5]
[341048374,1730302262912,-500.0,0.00035342,5]
[341048375,1730302262922,-202.24113226,0.00035342,5]
[341048376,1730302262932,-645.8,0.00035342,5]
[341048377,1730302262942,-820.11,0.00035342,5]
[341048378,1730302262951,-1894.55,0.00035342,5]
[341048379,1730302262962,-2596.24,0.00035342,5]
[341048380,1730302262971,-1296.63,0.00035342,5]
[341048381,1730302262980,-500.0,0.00035342,5]
[341048382,1730302262989,-500.0,0.00035342,5]
[341048383,1730302262999,-500.0,0.00035342,5]
[341048384,1730302263008,-500.0,0.00035342,5]
[341048385,1730302263018,-500.0,0.00035342,5]
[341048386,1730302263027,-500.0,0.00035342,5]
[341048387,1730302263037,-500.0,0.00035342,5]
[341048388,1730302263047,-500.0,0.00035342,5]
[341048389,1730302263057,-500.0,0.00035342,5]
[341048390,1730302263067,-500.0,0.00035342,5]
[341048391,1730302263076,-500.0,0.00035342,5]
[341048392,1730302263086,-500.0,0.00035342,5]
[341048393,1730302263096,-522.83,0.00035342,5]
[341048394,1730302263106,-858.81,0.00035342,5]
[341048395,1730302263117,-644.61,0.00035342,5]
[341048396,1730302263127,-500.0,0.00035342,5]
[341048397,1730302263137,-500.0,0.00035342,5]
[341048398,1730302263147,-1013.76,0.00035342,5]
[341048399,1730302263158,-1525.36,0.00035342,5]
[341048400,1730302263167,-994.82,0.00035342,5]
[341048401,1730302263177,-1722.33,0.00035342,5]
[341048402,1730302263187,-500.0,0.00035342,5]
[341048403,1730302263199,-765.48,0.00035342,5]
[341048404,1730302263209,-520.05,0.00035342,5]
[341048405,1730302263219,-675.19,0.00035342,5]
[341048406,1730302263229,-746.68,0.00035342,5]
[341048407,1730302263238,-500.0,0.00035342,5]
[341048408,1730302263248,-514.74012995,0.00035342,5]
[341048409,1730302263257,-784.67,0.00035342,5]
[341048410,1730302263268,-500.0,0.00035342,5]
[341048411,1730302263278,-1069.78,0.00035342,5]
[341048412,1730302263287,-736.62,0.00035342,5]
[341048413,1730302263415,-500.0,0.00035342,5]
[341048414,1730302263442,-854.42,0.00035342,5]
[341048415,1730302263452,-606.31,0.00035342,5]
[341048416,1730302263463,-500.0,0.00035342,5]
[341048417,1730302263472,-500.0,0.00035342,5]
[341048418,1730302263482,-500.0,0.00035342,5]
[341048419,1730302263493,-500.0,0.00035342,5]
[341048420,1730302263502,-500.0,0.00035342,5]
[341048421,1730302263512,-500.0,0.00035342,5]
[341048422,1730302263522,-500.0,0.00035342,5]
[341048423,1730302263531,-500.0,0.00035342,5]
[341048424,1730302263545,-500.0,0.00035342,5]
[341048425,1730302263559,-674.49,0.00035342,5]
[341048426,1730302263568,-982.93,0.00035342,5]
[341048427,1730302263578,-778.7,0.00035342,5]
[341048428,1730302263588,-500.0,0.00035342,5]
[341048429,1730302263600,-728.13,0.00035342,5]
[341048430,1730302263609,-500.0,0.00035342,5]
[341048431,1730302263619,-1522.75,0.00035342,5]
[341048432,1730302263630,-500.0,0.00035342,5]
[341048433,1730302263640,-552.1,0.00035342,5]
[341048434,1730302263651,-500.0,0.00035342,5]
[341048435,1730302263660,-500.0,0.00035342,5]
[341048436,1730302263670,-662.62,0.00035342,5]
[341048437,1730302263680,-1018.42,0.00035342,5]
[341048438,1730302263690,-500.0,0.00035342,5]
[341048439,1730302263701,-500.0,0.00035342,5]
[341048440,1730302263711,-1327.53,0.00035342,5]
[341048441,1730302263720,-500.0,0.00035342,5]
[341048442,1730302263730,-500.0,0.00035342,5]
[341048443,1730302263740,-560.36,0.00035342,5]
[341048444,1730302263750,-607.17,0.00035342,5]
[341048445,1730302263760,-500.0,0.00035342,5]
[341048446,1730302263770,-500.0,0.00035342,5]
[341048447,1730302263780,-508.13,0.00035342,5]
[341048448,1730302263790,-1605.64,0.00035342,2]
[341048449,1730302263800,-500.0,0.00035342,5]
[341048450,1730302263810,-863.12,0.00035342,5]
[341048451,1730302263820,-1678.61,0.00035342,5]
[341048452,1730302263830,-656.55,0.00035342,5]
[341048453,1730302263840,-893.64,0.00035342,5]
[341048454,1730302263850,-1610.11,0.00035342,5]
[341048455,1730302263860,-500.0,0.00035342,5]
[341048456,1730302263870,-742.19,0.00035342,5]
[341048457,1730302263880,-785.2,0.00035342,5]
[341048458,1730302263889,-638.8,0.00035342,5]
[341048459,1730302263899,-536.5,0.00035342,5]
[341048460,1730302263909,-948.73,0.00035342,5]
[341048461,1730302263919,-500.0,0.00035342,5]
[341048462,1730302263929,-596.98,0.00035342,5]
[341048463,1730302263939,-1435.74,0.00035342,5]
[341048464,1730302263950,-500.0,0.00035342,5]
[341048465,1730302263960,-451.84563981,0.00035342,5]
[341048466,1730302263970,-1131.97,0.00035342,5]
[341048467,1730302263980,-500.0,0.00035342,5]
[341048468,1730302263990,-500.0,0.00035342,5]
[341048469,1730302264000,-500.0,0.00035342,5]
[341048470,1730302264009,-2913.63,0.00035342,5]
[341048471,1730302264019,-500.0,0.00035342,5]
[341048472,1730302264028,-500.0,0.00035342,5]
[341048473,1730302264038,-1246.85,0.00035342,5]
[341048474,1730302264047,-500.0,0.00035342,5]
[341048475,1730302264057,-682.68,0.00035342,5]
[341048476,1730302264067,-909.5,0.00035342,5]
[341048477,1730302264077,-1653.57,0.00035342,5]
[341048478,1730302264088,-512.41,0.00035342,5]
[341048479,1730302264098,-500.0,0.00035342,5]
[341048480,1730302264107,-568.82,0.00035342,5]
[341048481,1730302264117,-500.0,0.00035342,5]
[341048482,1730302264127,-607.5,0.00035342,5]
[341048483,1730302264137,-500.0,0.00035342,5]
[341048484,1730302264147,-685.64,0.00035342,5]
[341048485,1730302264156,-500.0,0.00035342,5]
[341048486,1730302264166,-529.75,0.00035342,5]
[341048487,1730302264175,-548.22,0.00035342,5]
[341048488,1730302264186,-728.2,0.00035342,5]
[341048489,1730302264198,-500.0,0.00035342,5]
[341048490,1730302264208,-500.0,0.00035342,5]
[341048491,1730302264218,-1132.3,0.00035342,5]
[341048492,1730302264228,-568.86616247,0.00035342,5]
[341048493,1730302264238,-597.03,0.00035342,5]
[341048494,1730302264248,-547.21880803,0.00035342,5]
[341048495,1730302264258,-500.0,0.00035342,5]
[341048496,1730302264268,-1047.4,0.00035342,5]
[341048497,1730302264278,-770.64,0.00035342,5]
[341048498,1730302264288,-500.0,0.00035342,5]
[341048499,1730302264298,-500.0,0.00035342,5]
[341048500,1730302264307,-535.78,0.00035342,5]
[341048501,1730302264316,-557.73179158,0.00035342,5]
[341048502,1730302264326,-507.29,0.00035342,5]
[341048503,1730302264336,-536.48,0.00035342,5]
[341048504,1730302264345,-879.42,0.00035342,5]
[341048505,1730302264356,-1152.94,0.00035342,5]
[341048506,1730302264366,-500.0,0.00035342,5]
[341048507,1730302264375,-538.17,0.00035342,5]
[341048508,1730302264385,-1061.7,0.00035342,5]
[341048509,1730302264395,-271.34548947,0.00035342,5]
[341048510,1730302264405,-745.29,0.00035342,5]
[341048511,1730302264415,-1669.21,0.00035342,5]
[341048512,1730302264425,-3103.25,0.00035342,5]
[341048513,1730302264434,-500.0,0.00035342,5]
[341048514,1730302264446,-500.0,0.00035342,5]
[341048515,1730302264456,-163.43,0.00035371,2]
[341048516,1730302264466,-800.0,0.00035387,2]
[341048517,1730302264476,-500.0,0.00035616,5]
[341048518,1730302264485,-500.0,0.00035616,5]
[341048519,1730302264494,-500.0,0.00035616,5]
[341048520,1730302264504,-500.0,0.00035616,5]
[341048521,1730302264513,-500.0,0.00035616,5]
[341048522,1730302264524,-500.0,0.00035616,5]
[341048523,1730302264534,-500.0,0.00035616,5]
[341048524,1730302264544,-500.0,0.00035616,5]
[341048525,1730302264557,-500.0,0.00035616,5]
[341048526,1730302264567,-500.0,0.00035616,5]
[341048527,1730302264576,-650.94,0.00035616,5]
[341048528,1730302264586,-500.0,0.00035616,5]
[341048529,1730302264597,-500.0,0.00035616,5]
[341048530,1730302264607,-645.8,0.00035616,5]
[341048531,1730302264617,-820.11,0.00035616,5]
[341048532,1730302264626,-1894.55,0.00035616,5]
[341048533,1730302264638,-2596.24,0.00035616,5]
[341048534,1730302264648,-1296.63,0.00035616,5]
[341048535,1730302264657,-500.0,0.00035616,5]
[341048536,1730302264667,-500.0,0.00035616,5]
[341048537,1730302264677,-500.0,0.00035616,5]
[341048538,1730302264686,-500.0,0.00035616,5]
[341048539,1730302264697,-500.0,0.00035616,5]
[341048540,1730302264707,-500.0,0.00035616,5]
[341048541,1730302264716,-500.0,0.00035616,5]
[341048542,1730302264726,-500.0,0.00035616,5]
[341048543,1730302264736,-500.0,0.00035616,5]
[341048544,1730302264745,-312.34886565,0.00035616,5]
[341048545,1730302264755,-500.0,0.00035616,5]
[341048546,1730302264765,-500.0,0.00035616,5]
[341048547,1730302264774,-522.83,0.00035616,5]
[341048548,1730302264784,-858.81,0.00035616,5]
[341048549,1730302264794,-644.61,0.00035616,5]
[341048550,1730302264803,-500.0,0.00035616,5]
[341048551,1730302264813,-500.0,0.00035616,5]
[341048552,1730302264823,-1013.76,0.00035616,5]
[341048553,1730302264833,-1525.36,0.00035616,5]
[341048554,1730302264843,-994.82,0.00035616,5]
[341048555,1730302264853,-1722.33,0.00035616,5]
[341048556,1730302264862,-500.0,0.00035616,5]
[341048557,1730302264871,-765.48,0.00035616,5]
[341048558,1730302264881,-520.05,0.00035616,5]
[341048559,1730302264891,-675.19,0.00035616,5]
[341048560,1730302264901,-746.68,0.00035616,5]
[341048561,1730302264911,-500.0,0.00035616,5]
[341048562,1730302264920,-784.67,0.00035616,5]
[341048563,1730302264930,-500.0,0.00035616,5]
[341048564,1730302264940,-1069.78,0.00035616,5]
[341048565,1730302264950,-736.62,0.00035616,5]
[341048566,1730302264959,-500.0,0.00035616,5]
[341048567,1730302264969,-854.42,0.00035616,5]
[341048568,1730302264979,-606.31,0.00035616,5]
[341048569,1730302264988,-500.0,0.00035616,5]
[341048570,1730302264996,-500.0,0.00035616,5]
[341048571,1730302265006,-500.0,0.00035616,5]
[341048572,1730302265015,-500.0,0.00035616,5]
[341048573,1730302265026,-541.34098944,0.00035616,5]
[341048574,1730302265037,-500.0,0.00035616,5]
[341048575,1730302265046,-500.0,0.00035616,5]
[341048576,1730302265056,-500.0,0.00035616,5]
[341048577,1730302265066,-500.0,0.00035616,5]
[341048578,1730302265076,-674.49,0.00035616,5]
[341048579,1730302265087,-982.93,0.00035616,5]
[341048580,1730302265096,-778.7,0.00035616,5]
[341048581,1730302265106,-500.0,0.00035616,5]
[341048582,1730302265117,-728.13,0.00035616,5]
[341048583,1730302265127,-500.0,0.00035616,5]
[341048584,1730302265138,-1522.75,0.00035616,5]
[341048585,1730302265148,-500.0,0.00035616,5]
[341048586,1730302265158,-552.1,0.00035616,5]
[341048587,1730302265168,-500.0,0.00035616,5]
[341048588,1730302265178,-500.0,0.00035616,5]
[341048589,1730302265187,-662.62,0.00035616,5]
[341048590,1730302265198,-1018.42,0.00035616,5]
[341048591,1730302265208,-500.0,0.00035616,5]
[341048592,1730302265219,-500.0,0.00035616,5]
[341048593,1730302265228,-1327.53,0.00035616,5]
[341048594,1730302265238,-500.0,0.00035616,5]
[341048595,1730302265247,-500.0,0.00035616,5]
[341048596,1730302265257,-560.36,0.00035616,5]
[341048597,1730302265267,-607.17,0.00035616,5]
[341048598,1730302265276,-306.79054143,0.00035616,5]
[341048599,1730302265286,-500.0,0.00035616,5]
[341048600,1730302265295,-508.13,0.00035616,5]
[341048601,1730302265304,-1605.64,0.00035616,2]
[341048602,1730302265314,-500.0,0.00035616,5]
[341048603,1730302265324,-863.12,0.00035616,5]
[341048604,1730302265334,-1678.61,0.00035616,5]
[341048605,1730302265342,-656.55,0.00035616,5]
[341048606,1730302265352,-893.64,0.00035616,5]
[341048607,1730302265361,-1610.11,0.00035616,5]
[341048608,1730302265371,-500.0,0.00035616,5]
[341048609,1730302265382,-742.19,0.00035616,5]
[341048610,1730302265391,-785.2,0.00035616,5]
[341048611,1730302265400,-638.8,0.00035616,5]
[341048612,1730302265410,-536.5,0.00035616,5]
[341048613,1730302265419,-948.73,0.00035616,5]
[341048614,1730302265429,-500.0,0.00035616,5]
[341048615,1730302265439,-596.98,0.00035616,5]
[341048616,1730302265450,-1435.74,0.00035616,5]
[341048617,1730302265460,-500.0,0.00035616,5]
[341048618,1730302265470,-1131.97,0.00035616,5]
[341048619,1730302265479,-500.0,0.00035616,5]
[341048620,1730302265489,-500.0,0.00035616,5]
[341048621,1730302265499,-595.3476836,0.00035616,5]
[341048622,1730302265508,-2913.63,0.00035616,5]
[341048623,1730302265517,-500.0,0.00035616,5]
[341048624,1730302265526,-500.0,0.00035616,5]
[341048625,1730302265537,-1246.85,0.00035616,5]
[341048626,1730302265547,-234.51283862,0.00035616,5]
[341048627,1730302265560,-682.68,0.00035616,5]
[341048628,1730302265570,-909.5,0.00035616,5]
[341048629,1730302265579,-1653.57,0.00035616,5]
[341048630,1730302265590,-512.41,0.00035616,5]
[341048631,1730302265599,-500.0,0.00035616,5]
[341048632,1730302265609,-568.82,0.00035616,5]
[341048633,1730302265618,-500.0,0.00035616,5]
[341048634,1730302265630,-607.5,0.00035616,5]
[341048635,1730302265640,-500.0,0.00035616,5]
[341048636,1730302265649,-685.64,0.00035616,5]
[341048637,1730302265659,-500.0,0.00035616,5]
[341048638,1730302265669,-529.75,0.00035616,5]
[341048639,1730302265679,-548.22,0.00035616,5]
[341048640,1730302265689,-728.2,0.00035616,5]
[341048641,1730302265701,-500.0,0.00035616,5]
[341048642,1730302265715,-500.0,0.00035616,5]
[341048643,1730302265724,-1132.3,0.00035616,5]
[341048644,1730302265734,-597.03,0.00035616,5]
[341048645,1730302265744,-500.0,0.00035616,5]
[341048646,1730302265754,-1047.4,0.00035616,5]
[341048647,1730302265763,-770.64,0.00035616,5]
[341048648,1730302265773,-500.0,0.00035616,5]
[341048649,1730302265783,-500.0,0.00035616,5]
[341048650,1730302265793,-535.78,0.00035616,5]
[341048651,1730302265802,-507.29,0.00035616,5]
[341048652,1730302265812,-536.48,0.00035616,5]
[341048653,1730302265821,-879.42,0.00035616,5]
[341048654,1730302265830,-1152.94,0.00035616,5]
[341048655,1730302265840,-500.0,0.00035616,5]
[341048656,1730302265850,-538.17,0.00035616,5]
[341048657,1730302265860,-1061.7,0.00035616,5]
[341048658,1730302265871,-745.29,0.00035616,5]
[341048659,1730302265880,-1669.21,0.00035616,5]
[341048660,1730302265890,-3103.25,0.00035616,5]
[341048661,1730302265899,-500.0,0.00035616,5]
[341048662,1730302265908,-500.0,0.00035616,5]
[341048663,1730302265918,-199.01508618,0.0003579,2]
[341048664,1730302265927,-964.84,0.00035846,2]
[341048665,1730302265937,-838.83,0.00035889,5]
[341048666,1730302265955,-197.25220297,0.0003589,5]
[341048667,1730302265965,-500.0,0.0003589,5]
[341048668,1730302265974,-500.0,0.0003589,5]
[341048669,1730302265983,-500.0,0.0003589,5]
[341048670,1730302265992,-500.0,0.0003589,5]
[341048671,1730302266001,-500.0,0.0003589,5]
[341048672,1730302266010,-500.0,0.0003589,5]
[341048673,1730302266020,-451.4866946,0.0003589,5]
[341048674,1730302266029,-500.0,0.0003589,5]
[341048675,1730302266038,-500.0,0.0003589,5]
[341048676,1730302266156,-650.94,0.0003589,5]
[341048677,1730302266178,-500.0,0.0003589,5]
[341048678,1730302266188,-500.0,0.0003589,5]
[341048679,1730302266199,-645.8,0.0003589,5]
[341048680,1730302266208,-820.11,0.0003589,5]
[341048681,1730302266218,-1894.55,0.0003589,5]
[341048682,1730302266227,-2596.24,0.0003589,5]
[341048683,1730302266236,-1296.63,0.0003589,5]
[341048684,1730302266246,-500.0,0.0003589,5]
[341048685,1730302266256,-500.0,0.0003589,5]
[341048686,1730302266265,-482.0626573,0.0003589,5]
[341048687,1730302266274,-500.0,0.0003589,5]
[341048688,1730302266285,-500.0,0.0003589,5]
[341048689,1730302266295,-500.0,0.0003589,5]
[341048690,1730302266305,-500.0,0.0003589,5]
[341048691,1730302266314,-500.0,0.0003589,5]
[341048692,1730302266323,-500.0,0.0003589,5]
[341048693,1730302266333,-500.0,0.0003589,5]
[341048694,1730302266342,-500.0,0.0003589,5]
[341048695,1730302266351,-522.83,0.0003589,5]
[341048696,1730302266360,-858.81,0.0003589,5]
[341048697,1730302266370,-644.61,0.0003589,5]
[341048698,1730302266379,-500.0,0.0003589,5]
[341048699,1730302266388,-500.0,0.0003589,5]
[341048700,1730302266398,-1013.76,0.0003589,5]
[341048701,1730302266407,-1525.36,0.0003589,5]
[341048702,1730302266416,-994.82,0.0003589,5]
[341048703,1730302266425,-1722.33,0.0003589,5]
[341048704,1730302266434,-500.0,0.0003589,5]
[341048705,1730302266446,-765.48,0.0003589,5]
[341048706,1730302266455,-520.05,0.0003589,5]
[341048707,1730302266465,-675.19,0.0003589,5]
[341048708,1730302266474,-746.68,0.0003589,5]
[341048709,1730302266484,-500.0,0.0003589,5]
[341048710,1730302266494,-784.67,0.0003589,5]
[341048711,1730302266503,-500.0,0.0003589,5]
[341048712,1730302266513,-1069.78,0.0003589,5]
[341048713,1730302266523,-736.62,0.0003589,5]
[341048714,1730302266532,-500.0,0.0003589,5]
[341048715,1730302266542,-854.42,0.0003589,5]
[341048716,1730302266554,-606.31,0.0003589,5]
[341048717,1730302266565,-500.0,0.0003589,5]
[341048718,1730302266575,-500.0,0.0003589,5]
[341048719,1730302266584,-500.0,0.0003589,5]
[341048720,1730302266595,-500.0,0.0003589,5]
[341048721,1730302266605,-500.0,0.0003589,5]
[341048722,1730302266614,-500.0,0.0003589,5]
[341048723,1730302266624,-500.55353089,0.0003589,5]
[341048724,1730302266635,-500.0,0.0003589,5]
[341048725,1730302266644,-674.49,0.0003589,5]
[341048726,1730302266654,-982.93,0.0003589,5]
[341048727,1730302266664,-778.7,0.0003589,5]
[341048728,1730302266673,-500.0,0.0003589,5]
[341048729,1730302266682,-728.13,0.0003589,5]
[341048730,1730302266694,-500.0,0.0003589,5]
[341048731,1730302266704,-1522.75,0.0003589,5]
[341048732,1730302266714,-500.0,0.0003589,5]
[341048733,1730302266724,-552.1,0.0003589,5]
[341048734,1730302266733,-500.0,0.0003589,5]
[341048735,1730302266743,-500.0,0.0003589,5]
[341048736,1730302266752,-662.62,0.0003589,5]
[341048737,1730302266762,-1018.42,0.0003589,5]
[341048738,1730302266771,-500.0,0.0003589,5]
[341048739,1730302266781,-500.0,0.0003589,5]
[341048740,1730302266791,-1327.53,0.0003589,5]
[341048741,1730302266801,-500.0,0.0003589,5]